fUSD/lending_fUSD_20260112
["ID","MTS","AMOUNT","RATE_DAILY","PERIOD"]
[401393126,1768176037202,-334.27041242,0.0001564,2]
[401393127,1768176247596,817.51012334,0.00013366,2]
[401393128,1768176247621,283.48987666,0.00013366,2]
[401393129,1768176315580,1500.0,0.00012698,2]
[401393142,1768176435117,-613.69694138,0.0001407,2]
[401393145,1768176448100,-487.30305862,0.0001407,2]
[401393146,1768176448122,-88.07913056,0.00014805,2]
[401393155,1768176631842,-78.58086944,0.00014805,2]
[401393156,1768176631852,-250.0,0.00014808,2]
[401393157,1768176631861,-1101.0,0.0001481,2]
[401393158,1768176631871,-166.66,0.00015117,2]
[401393159,1768176631880,-250.0,0.00015126,2]
[401393160,1768176631890,-166.66,0.00015429,2]
[401393161,1768176631899,-300.0,0.00015471,2]
[401393162,1768176631908,-1200.0,0.00015471,2]
[401393163,1768176631917,-2866.83073924,0.00015472,2]
[401393164,1768176631932,-661.37350231,0.00015472,2]
[401393166,1768176631961,-5201.59575845,0.00015472,2]
[401393168,1768176631971,-278.46,0.00015506,2]
[401393170,1768176631981,-221.12,0.00015507,2]
[401393171,1768176631990,-1101.0,0.0001559,2]
[401393172,1768176632000,-255.7711266,0.00015639,2]
[401393173,1768176632009,-500.0,0.0001564,2]
[401393174,1768176632019,-500.0,0.0001564,2]
[401393175,1768176632029,-500.0,0.0001564,2]
[401393176,1768176632038,-152.749577,0.0001564,2]
[401393177,1768176632049,-166.66,0.0001574,2]
[401393178,1768176632058,-318.8,0.00015855,2]
[401393179,1768176632068,-313.02788312,0.000159,2]
[401393180,1768176632077,-287.0,0.00015916,2]
[401393181,1768176632087,-151.0,0.00016024,2]
[401393182,1768176632097,-151.0,0.00016024,2]
[401393183,1768176632107,-151.0,0.00016025,2]
[401393184,1768176632117,-151.0,0.00016025,2]
[401393185,1768176632126,-166.66,0.00016052,2]
[401393186,1768176632136,-313.02788311,0.00016111,2]
[401393187,1768176632145,-166.66,0.00016131,2]
[401393188,1768176632155,-550.0,0.0001618,2]
[401393189,1768176632165,-745.83,0.00016182,2]
[401393190,1768176632174,-500.0,0.00016183,2]
[401393191,1768176632183,-17823.2055371,0.00016184,2]
[401393192,1768176632193,-150.0,0.000162,2]
[401393193,1768176632203,-150.0,0.000162,2]
[401393194,1768176632212,-150.0,0.000162,2]
[401393195,1768176632222,-150.0,0.000162,2]
[401393196,1768176632232,-150.0,0.000162,2]
[401393197,1768176632243,-150.0,0.000162,2]
[401393198,1768176632253,-150.0,0.000162,2]
[401393199,1768176632263,-150.4343184,0.000162,2]
[401393200,1768176632274,-178.176763,0.000162,2]
[401393201,1768176632284,-150.0,0.000162,2]
[401393202,1768176632294,-150.0,0.000162,2]
[401393203,1768176632304,-150.37867968,0.000162,2]
[401393204,1768176632315,-150.0,0.000162,2]
[401393205,1768176632325,-150.0,0.000162,2]
[401393206,1768176632334,-150.0,0.000162,2]
[401393207,1768176632344,-150.0,0.0001622,2]
[401393208,1768176632358,-150.0,0.00016241,2]
[401393209,1768176632368,-150.0,0.00016261,2]
[401393210,1768176632377,-150.0,0.00016282,2]
[401393211,1768176632387,-195.0,0.00016286,2]
[401393212,1768176632398,-250.0,0.00016286,2]
[401393213,1768176632408,-150.0,0.00016302,2]
[401393214,1768176632417,-150.0,0.00016323,2]
[401393215,1768176632431,-150.0,0.00016343,2]
[401393216,1768176632441,-322.6107,0.00016346,2]
[401393217,1768176632451,-998.0,0.00016346,2]
[401393218,1768176632462,-500.0,0.00016356,2]
[401393219,1768176632472,-700.0,0.00016356,2]
[401393220,1768176632482,-1500.0,0.00016356,2]
[401393221,1768176632492,-150.0,0.00016364,2]
[401393222,1768176632503,-166.66,0.00016364,2]
[401393223,1768176632515,-278.46,0.00016368,2]
[401393224,1768176632525,-1101.0,0.00016369,2]
[401393225,1768176632535,-150.0,0.00016384,2]
[401393226,1768176632544,-150.0,0.00016405,2]
[401393227,1768176632554,-150.0,0.00016425,2]
[401393228,1768176632563,-211.20104298,0.00016438,2]
[401393229,1768176632573,-151.0,0.00016438,2]
[401393230,1768176632583,-150.0,0.00016445,2]
[401393231,1768176632592,-745.83,0.00016456,2]
[401393232,1768176632604,-500.0,0.00016457,2]
[401393233,1768176632615,-150.0,0.00016466,2]
[401393234,1768176632625,-150.0,0.00016486,2]
[401393235,1768176632635,-150.0,0.00016507,2]
[401393236,1768176632647,-150.0,0.00016527,2]
[401393237,1768176632657,-150.0,0.00016548,2]
[401393238,1768176632667,-150.0,0.0001656,2]
[401393239,1768176632677,-150.0,0.00016568,2]
[401393240,1768176632687,-150.0,0.00016589,2]
[401393241,1768176632696,-150.0,0.00016609,2]
[401393242,1768176632706,-150.0,0.0001663,2]
[401393243,1768176632716,-150.0,0.0001665,2]
[401393244,1768176632725,-150.0,0.0001665,2]
[401393245,1768176632735,-150.0,0.0001665,2]
[401393246,1768176632745,-150.0,0.0001665,2]
[401393247,1768176632754,-150.0,0.0001665,2]
[401393248,1768176632763,-166.66,0.00016664,2]
[401393249,1768176632773,-150.0,0.0001667,2]
[401393250,1768176632782,-150.0,0.00016691,2]
[401393251,1768176632792,-1100.0,0.000167,6]
[401393252,1768176632801,-150.0,0.00016711,2]
[401393253,1768176632811,-500.0,0.00016712,2]
[401393254,1768176632821,-159.67,0.00016712,2]
[401393255,1768176632831,-745.83,0.0001673,2]
[401393256,1768176632840,-500.0,0.00016731,2]
[401393257,1768176632850,-150.0,0.00016732,2]
[401393258,1768176632860,-150.0,0.00016752,2]
[401393259,1768176632874,-150.0,0.00016773,2]
[401393260,1768176632884,-150.0,0.00016793,2]
[401393261,1768176632894,-150.0,0.000168,2]
[401393262,1768176632905,-150.0,0.000168,2]
[401393263,1768176632914,-2300.0,0.000168,6]
[401393264,1768176632924,-150.0,0.00016814,2]
[401393265,1768176632934,-313.02788311,0.00016816,2]
[401393266,1768176632944,-150.0,0.00016834,2]
[401393267,1768176632954,-1727.9088817,0.0001685,2]
[401393268,1768176632964,-150.0,0.00016855,2]
[401393269,1768176632973,-150.0,0.00016875,2]
[401393270,1768176632983,-150.0,0.00016895,2]
[401393271,1768176632992,-7353.80008552,0.00016898,2]
[401393272,1768176633002,-3500.0,0.000169,6]
[401393273,1768176633012,-150.0,0.00016916,2]
[401393274,1768176633021,-150.0,0.0001692,2]
[401393275,1768176633031,-150.0,0.00016936,2]
[401393276,1768176633040,-150.0,0.00016957,2]
[401393277,1768176633050,-164.94,0.00016976,2]
[401393278,1768176633059,-700.13,0.00016976,2]
[401393279,1768176633070,-700.13,0.00016976,2]
[401393280,1768176633079,-700.13,0.00016976,2]
[401393281,1768176633089,-150.0,0.00016977,2]
[401393282,1768176633099,-359537.15,0.00016986,2]
[401393283,1768176633108,-150.0,0.00016998,2]
[401393284,1768176633118,-745.83,0.00017004,2]
[401393285,1768176633129,-1680.0,0.00017009,2]
[401393286,1768176633139,-7353.80008552,0.00017009,2]
[401393287,1768176633149,-150.0,0.00017018,2]
[401393288,1768176633158,-700.13,0.00017036,2]
[401393289,1768176633168,-700.13,0.00017036,2]
[401393290,1768176633178,-150.0,0.00017039,2]
[401393291,1768176633188,-482.99,0.00017041,2]
[401393292,1768176633198,-515.95706265,0.00017045,2]
[401393293,1768176633208,-117989.94598732,0.00017046,2]
[401393294,1768176633219,-150.0,0.00017059,2]
[401393295,1768176633229,-151.0,0.00017068,2]
[401393296,1768176633238,-250.0,0.00017068,2]
[401393297,1768176633248,-500.0,0.00017068,2]
[401393298,1768176633258,-500.0,0.00017068,2]
[401393299,1768176633268,-250.0,0.00017068,2]
[401393300,1768176633278,-500.0,0.00017068,2]
[401393301,1768176633288,-250.0,0.00017068,2]
[401393302,1768176633297,-151.0,0.00017068,2]
[401393303,1768176633307,-500.0,0.00017068,2]
[401393304,1768176633318,-250.0,0.00017068,2]
[401393305,1768176633328,-151.0,0.00017068,2]
[401393306,1768176633338,-500.0,0.00017068,2]
[401393307,1768176633348,-250.0,0.00017068,2]
[401393308,1768176633362,-151.0,0.00017068,2]
[401393309,1768176633372,-500.0,0.00017068,2]
[401393310,1768176633382,-250.0,0.00017068,2]
[401393311,1768176633392,-151.0,0.00017068,2]
[401393312,1768176633403,-500.0,0.00017068,2]
[401393313,1768176633412,-250.0,0.00017068,2]
[401393314,1768176633422,-151.0,0.00017068,2]
[401393315,1768176633434,-500.0,0.00017068,2]
[401393316,1768176633444,-250.0,0.00017068,2]
[401393317,1768176633454,-151.0,0.00017068,2]
[401393318,1768176633464,-500.0,0.00017068,2]
[401393319,1768176633474,-250.0,0.00017068,2]
[401393320,1768176633484,-151.0,0.00017068,2]
[401393321,1768176633494,-500.0,0.00017068,2]
[401393322,1768176633504,-250.0,0.00017068,2]
[401393323,1768176633513,-500.0,0.00017068,2]
[401393324,1768176633523,-250.0,0.00017068,2]
[401393325,1768176633533,-500.0,0.00017068,2]
[401393326,1768176633543,-500.0,0.00017068,2]
[401393327,1768176633553,-500.0,0.00017068,2]
[401393328,1768176633564,-500.0,0.00017068,2]
[401393329,1768176633573,-500.0,0.00017068,2]
[401393330,1768176633583,-200.0,0.00017068,2]
[401393331,1768176633592,-500.0,0.00017068,2]
[401393332,1768176633602,-500.0,0.00017068,2]
[401393333,1768176633614,-500.0,0.00017068,2]
[401393334,1768176633624,-500.0,0.00017068,2]
[401393335,1768176633634,-250.0,0.00017068,2]
[401393336,1768176633644,-500.0,0.00017068,2]
[401393337,1768176633654,-500.0,0.00017068,2]
[401393338,1768176633664,-260.34840278,0.00017068,2]
[401393339,1768176633673,-500.0,0.00017068,2]
[401393340,1768176633683,-500.0,0.00017068,2]
[401393341,1768176633693,-651.90523039,0.00017068,2]
[401393342,1768176633703,-500.0,0.00017068,2]
[401393343,1768176633713,-500.0,0.00017068,2]
[401393344,1768176633723,-533.88981491,0.00017068,2]
[401393345,1768176633732,-500.0,0.00017068,2]
[401393346,1768176633741,-500.0,0.00017068,2]
[401393347,1768176633756,-500.0,0.00017068,2]
[401393348,1768176633765,-500.0,0.00017068,2]
[401393349,1768176633775,-500.0,0.00017068,2]
[401393350,1768176633784,-250.0,0.00017068,2]
[401393351,1768176633799,-250.0,0.00017068,2]
[401393352,1768176633809,-620.0,0.00017068,2]
[401393353,1768176633818,-250.0,0.00017068,2]
[401393354,1768176633829,-250.0,0.00017068,2]
[401393355,1768176633840,-250.0,0.00017068,2]
[401393356,1768176633849,-250.0,0.00017068,2]
[401393357,1768176633861,-250.0,0.00017068,2]
[401393358,1768176633871,-250.0,0.00017068,2]
[401393359,1768176633880,-250.0,0.00017068,2]
[401393360,1768176633890,-250.0,0.00017068,2]
[401393361,1768176633899,-250.0,0.00017068,2]
[401393362,1768176633909,-500.0,0.00017073,2]
[401393363,1768176633919,-500.0,0.00017073,2]
[401393364,1768176633931,-500.0,0.00017073,2]
[401393365,1768176633940,-500.0,0.00017073,2]
[401393366,1768176633952,-500.0,0.00017073,2]
[401393367,1768176633962,-500.0,0.00017073,2]
[401393368,1768176633971,-500.0,0.00017073,2]
[401393369,1768176633980,-500.0,0.00017073,2]
[401393370,1768176633990,-500.0,0.00017073,2]
[401393371,1768176633999,-291.14417023,0.00017073,2]
[401393372,1768176634009,-500.0,0.00017073,2]
[401393373,1768176634018,-500.0,0.00017073,2]
[401393374,1768176634027,-500.0,0.00017073,2]
[401393375,1768176634039,-500.0,0.00017073,2]
[401393376,1768176634049,-500.0,0.00017073,2]
[401393377,1768176634059,-500.0,0.00017073,2]
[401393378,1768176634068,-500.0,0.00017073,2]
[401393379,1768176634078,-414.52858729,0.00017073,2]
[401393380,1768176634087,-500.0,0.00017073,2]
[401393381,1768176634097,-500.0,0.00017073,2]
[401393382,1768176634106,-500.0,0.00017073,2]
[401393383,1768176634116,-312.9434502,0.00017073,2]
[401393384,1768176634126,-500.0,0.00017073,2]
[401393385,1768176634135,-500.0,0.00017073,2]
[401393386,1768176634145,-500.0,0.00017073,2]
[401393387,1768176634155,-500.0,0.00017073,2]
[401393388,1768176634164,-150.0,0.0001708,2]
[401393389,1768176634174,-151.0,0.00017093,2]
[401393390,1768176634184,-151.0,0.00017093,2]
[401393391,1768176634193,-1086.3,0.00017093,2]
[401393392,1768176634203,-150.0,0.000171,2]
[401393393,1768176634212,-150.0,0.000171,2]
[401393394,1768176634222,-150.0,0.000171,2]
[401393395,1768176634232,-150.0,0.000171,2]
[401393396,1768176634243,-150.0,0.000171,2]
[401393397,1768176634252,-150.0,0.000171,2]
[401393398,1768176634262,-150.0,0.0001712,2]
[401393399,1768176634272,-7353.80008552,0.00017121,2]
[401393400,1768176634281,-150.0,0.00017141,2]
[401393401,1768176634291,-150.0,0.00017161,2]
[401393402,1768176634301,-20569.66112687,0.00017171,2]
[401393403,1768176634311,-200.0,0.00017174,2]
[401393404,1768176634321,-1086.3,0.00017175,2]
[401393405,1768176634331,-150.0,0.00017178,2]
[401393406,1768176634341,-150.0,0.00017178,2]
[401393407,1768176634356,-150.0,0.00017182,2]
[401393408,1768176634366,-1101.0,0.00017187,2]
[401393409,1768176634376,-166.66,0.00017196,2]
[401393410,1768176634386,-150.0,0.00017202,2]
[401393411,1768176634397,-150.0,0.00017223,2]
[401393412,1768176634405,-278.46,0.00017229,2]
[401393413,1768176634414,-7353.80008552,0.00017232,2]
[401393414,1768176634424,-150.0,0.00017243,2]
[401393415,1768176634432,-1086.3,0.00017258,2]
[401393416,1768176634442,-15613.84499868,0.00017263,2]
[401393417,1768176634451,-150.0,0.00017264,2]
[401393418,1768176634460,-745.83,0.00017278,2]
[401393419,1768176634470,-150.0,0.0001728,2]
[401393420,1768176634485,-150.0,0.00017284,2]
[401393421,1768176634494,-935.0,0.00017297,2]
[401393422,1768176634504,-4600.0,0.000173,6]
[401393423,1768176634514,-150.0,0.00017305,2]
[401393424,1768176634524,-150.0,0.00017325,2]
[401393425,1768176634533,-7097.86447201,0.00017334,2]
[401393426,1768176634543,-1086.3,0.0001734,2]
[401393427,1768176634553,-7353.80008552,0.00017343,2]
[401393428,1768176634562,-150.0,0.00017345,2]
[401393429,1768176634572,-193.93384689,0.00017348,2]
[401393430,1768176634582,-193.93384688,0.00017356,2]
[401393431,1768176634591,-162.0,0.0001736,2]
[401393432,1768176634601,-827.0,0.0001736,2]
[401393433,1768176634611,-193.93384688,0.00017364,2]
[401393434,1768176634621,-150.0,0.00017366,2]
[401393435,1768176634631,-150.0,0.00017386,2]
[401393436,1768176634640,-7097.864472,0.00017397,2]
[401393437,1768176634910,-150.0,0.000174,2]
[401393438,1768176634968,-150.0,0.000174,2]
[401393439,1768176634978,-5800.0,0.000174,6]
[401393440,1768176634988,-150.0,0.00017407,2]
[401393441,1768176634998,-158.44455393,0.0001741,2]
[401393442,1768176635007,-1086.3,0.00017423,2]
[401393443,1768176635016,-164.94,0.00017424,2]
[401393444,1768176635025,-150.0,0.00017427,2]
[401393445,1768176635034,-150.0,0.00017434,2]
[401393446,1768176635043,-73201.07863748,0.00017434,2]
[401393447,1768176635053,-168171.91722977,0.00017434,2]
[401393448,1768176635062,-150.0,0.00017448,2]
[401393449,1768176635071,-1011.18671889,0.00017454,2]
[401393450,1768176635081,-164.94,0.00017454,2]
[401393451,1768176635090,-164.94,0.00017454,2]
[401393452,1768176635099,-7353.80008552,0.00017455,2]
[401393453,1768176635108,-7097.864472,0.0001746,2]
[401393454,1768176635118,-261.78722899,0.00017463,2]
[401393455,1768176635128,-8667.0,0.00017464,2]
[401393456,1768176635137,-150.0,0.00017464,2]
[401393457,1768176635146,-108221.4071177,0.00017464,2]
[401393514,1768176638485,-500.0,0.00016179,2]
[401393516,1768176638494,-500.0,0.00016179,2]
[401393518,1768176638504,-500.0,0.00016179,2]
[401393520,1768176638514,-500.0,0.00016179,2]
[401393523,1768176638527,-500.0,0.00016179,2]
[401393525,1768176638536,-254.74062376,0.00016179,2]
[401393527,1768176638548,-245.25937624,0.00016179,2]
[401393529,1768176638558,-500.0,0.00016179,2]
[401393531,1768176638567,-500.0,0.00016179,2]
[401393533,1768176638576,-500.0,0.00016179,2]
[401393535,1768176638587,-500.0,0.00016179,2]
[401393537,1768176638597,-500.0,0.00016179,2]
[401393539,1768176638607,-500.0,0.00016179,2]
[401393541,1768176638617,-500.0,0.00016179,2]
[401393543,1768176638627,-500.0,0.00016179,2]
[401393545,1768176638636,-500.0,0.00016179,2]
[401393547,1768176638646,-500.0,0.00016179,2]
[401393549,1768176638656,-500.0,0.00016179,2]
[401393551,1768176638666,-500.0,0.00016179,2]
[401393552,1768176638676,-500.0,0.00016179,2]
[401393553,1768176638686,-500.0,0.00016179,2]
[401393554,1768176638696,-500.0,0.00016179,2]
[401393555,1768176638705,-500.0,0.00016179,2]
[401393556,1768176638715,-500.0,0.00016179,2]
[401393557,1768176638726,-500.0,0.00016179,2]
[401393558,1768176638735,-500.0,0.00016179,2]
[401393559,1768176638745,-500.0,0.00016179,2]
[401393560,1768176638755,-500.0,0.00016179,2]
[401393561,1768176638764,-500.0,0.00016179,2]
[401393562,1768176638774,-500.0,0.00016179,2]
[401393563,1768176638783,-500.0,0.00016179,2]
[401393564,1768176638793,-500.0,0.00016179,2]
[401393565,1768176638803,-500.0,0.00016179,2]
[401393566,1768176638812,-500.0,0.00016179,2]
[401393567,1768176638823,-151.0,0.00017464,2]
[401393568,1768176638833,-151.0,0.00017464,2]
[401393569,1768176638843,-151.0,0.00017464,2]
[401393570,1768176638852,-19957.86951394,0.00017464,2]
[401393571,1768176638864,-40338.20066495,0.00017464,2]
[401393572,1768176638877,-2416.06200004,0.00017464,2]
[401393573,1768176638889,-1099.0,0.00017464,2]
[401393574,1768176638923,-13957.90241531,0.00017464,2]
[401393575,1768176638982,-752.27343072,0.00017464,2]
[401393576,1768176640038,-86823.83027316,0.00017464,2]
[401393577,1768176640050,-386357.60935706,0.00017464,2]
[401393578,1768176640060,-499938.6051,0.00017464,2]
[401393579,1768176640070,-2094.0,0.00017468,2]
[401393580,1768176640082,-150.0,0.00017468,2]
[401393581,1768176640092,-150.0,0.00017489,2]
[401393582,1768176640102,-1100.0,0.000175,6]
[401393583,1768176640112,-1086.3,0.00017505,2]
[401393584,1768176640121,-150.0,0.00017509,2]
[401393585,1768176640132,-7097.864472,0.00017523,2]
[401393586,1768176640142,-2094.0,0.00017524,2]
[401393587,1768176640153,-150.0,0.0001753,2]
[401393588,1768176640163,-1743.0,0.00017536,2]
[401393589,1768176640175,-3740.1586,0.0001754,2]
[401393590,1768176640186,-150.0,0.0001755,2]
[401393591,1768176640196,-150.0,0.0001755,2]
[401393592,1768176640206,-150.0,0.0001755,2]
[401393593,1768176640216,-150.0,0.0001755,2]
[401393594,1768176640227,-150.0,0.0001755,2]
[401393595,1768176640237,-745.84,0.00017552,2]
[401393596,1768176640248,-7353.80008552,0.00017566,2]
[401393597,1768176640258,-150.0,0.0001757,2]
[401393599,1768176640268,-533.72425905,0.00017571,2]
[401393600,1768176640279,-7097.864472,0.00017586,2]
[401393601,1768176640289,-1086.3,0.00017588,2]
[401393602,1768176640299,-150.0,0.00017591,2]
[401393603,1768176640308,-1323.4,0.00017596,2]
[401393604,1768176640319,-1000.0,0.000176,2]
[401393605,1768176640329,-1100.0,0.000176,6]
[401393606,1768176640338,-546.48641955,0.00017606,2]
[401393607,1768176640348,-150.0,0.00017611,2]
[401393608,1768176640360,-553.64373807,0.00017616,2]
[401393609,1768176640370,-1058.15318076,0.00017616,2]
[401393610,1768176640380,-500.73774285,0.00017621,2]
[401393611,1768176640390,-500.0,0.00017621,2]
[401393612,1768176640400,-1000.66892907,0.00017621,2]
[401393614,1768176640409,-1000.91201932,0.00017621,2]
[401393615,1768176640418,-1001.18596631,0.00017621,2]
[401393616,1768176640429,-500.78603367,0.00017621,2]
[401393617,1768176640439,-1000.88678731,0.00017621,2]
[401393618,1768176640448,-604.40096717,0.00017621,2]
[401393619,1768176640458,-1000.0,0.00017621,2]
[401393620,1768176640467,-1000.0,0.00017621,2]
[401393621,1768176640478,-1000.0,0.00017621,2]
[401393622,1768176640487,-501.71787449,0.00017621,2]
[401393623,1768176640496,-1000.0,0.00017621,2]
[401393624,1768176640506,-647.0605734,0.00017621,2]
[401393625,1768176640515,-1000.0,0.00017621,2]
[401393626,1768176640524,-1000.0,0.00017621,2]
[401393627,1768176640534,-1000.0,0.00017621,2]
[401393628,1768176640543,-1000.0,0.00017621,2]
[401393629,1768176640552,-1000.0,0.00017621,2]
[401393630,1768176640562,-150.0,0.00017632,2]
[401393631,1768176640571,-1743.0,0.00017636,2]
[401393632,1768176640580,-533.72425904,0.00017637,2]
[401393633,1768176640590,-150.0,0.0001764,2]
[401393634,1768176640600,-5620.551924,0.0001764,2]
[401393635,1768176640609,-500.0,0.00017641,2]
[401393636,1768176640618,-1080.07034757,0.00017647,2]
[401393637,1768176640627,-7097.864472,0.00017648,2]
[401393638,1768176640637,-150.0,0.00017652,2]
[401393639,1768176640646,-1086.3,0.0001767,2]
[401393640,1768176640655,-500.0,0.00017671,2]
[401393641,1768176640664,-500.0,0.00017671,2]
[401393642,1768176640674,-500.0,0.00017671,2]
[401393643,1768176640683,-150.0,0.00017671,2]
[401393644,1768176640697,-500.0,0.00017671,2]
[401393645,1768176640707,-499.0,0.00017671,2]
[401393646,1768176640718,-500.0,0.00017671,2]
[401393647,1768176640727,-150.0,0.00017671,2]
[401393648,1768176640738,-150.0,0.00017671,2]
[401393649,1768176640748,-150.0,0.00017671,2]
[401393650,1768176640757,-500.0,0.00017671,2]
[401393651,1768176640768,-500.0,0.00017671,2]
[401393652,1768176640778,-500.0,0.00017671,2]
[401393653,1768176640788,-500.0,0.00017671,2]
[401393654,1768176640798,-150.0,0.00017671,2]
[401393655,1768176640807,-150.0,0.00017671,2]
[401393656,1768176640817,-158.5859407,0.00017671,2]
[401393657,1768176640826,-150.0,0.00017671,2]
[401393658,1768176640836,-150.0,0.00017671,2]
[401393659,1768176640845,-25000.0,0.00017671,3]
[401393660,1768176640855,-150.0,0.00017673,2]
[401393661,1768176640864,-227.319,0.0001768,2]
[401393662,1768176640875,-3384.097,0.0001768,2]
[401393663,1768176640884,-25000.0,0.0001768,3]
[401393664,1768176640894,-25000.0,0.00017689,3]
[401393665,1768176640904,-552.982,0.00017689,2]
[401393666,1768176640913,-150.0,0.00017693,2]
[401393667,1768176640922,-25000.0,0.00017698,3]
[401393668,1768176640932,-1058.15318076,0.00017699,2]
[401393669,1768176640942,-1100.0,0.000177,6]
[401393670,1768176640951,-533.72425904,0.00017703,2]
[401393671,1768176640960,-25000.0,0.00017706,3]
[401393672,1768176640970,-7097.864472,0.00017711,2]
[401393673,1768176640979,-150.0,0.00017714,2]
[401393674,1768176640989,-500.0,0.00017714,2]
[401393675,1768176641001,-334.5472959,0.00017715,2]
[401393676,1768176641010,-25000.0,0.00017715,3]
[401393677,1768176641021,-2500.0,0.00017721,2]
[401393678,1768176641030,-25000.0,0.00017724,3]
[401393679,1768176641040,-500.0,0.00017726,2]
[401393680,1768176641050,-500.0,0.00017726,2]
[401393681,1768176641063,-533.33397299,0.00017726,2]
[401393682,1768176641073,-500.0,0.00017726,2]
[401393683,1768176641082,-499.0,0.00017726,2]
[401393684,1768176641092,-500.0,0.00017726,2]
[401393685,1768176641101,-190.19225777,0.00017726,2]
[401393686,1768176641112,-500.0,0.00017726,2]
[401393687,1768176641122,-500.0,0.00017726,2]
[401393688,1768176641134,-500.0,0.00017726,2]
[401393689,1768176641143,-500.0,0.00017726,2]
[401393690,1768176641153,-150.0,0.00017726,2]
[401393691,1768176641162,-150.0,0.00017726,2]
[401393692,1768176641173,-700.0,0.00017726,7]
[401393693,1768176641183,-1500.0,0.00017726,7]
[401393694,1768176641193,-166.66,0.00017729,2]
[401393695,1768176641203,-25000.0,0.00017733,3]
[401393696,1768176641213,-150.0,0.00017734,2]
[401393697,1768176641223,-25000.0,0.00017742,3]
[401393698,1768176641233,-1000.0,0.0001775,2]
[401393699,1768176641243,-25000.0,0.0001775,3]
[401393700,1768176641253,-546.48641955,0.00017753,2]
[401393701,1768176641263,-1086.3,0.00017753,2]
[401393702,1768176641273,-1058.15318076,0.00017753,2]
[401393703,1768176641283,-150.0,0.00017755,2]
[401393704,1768176641293,-1000.0,0.00017755,2]
[401393705,1768176641303,-25000.0,0.00017759,3]
[401393706,1768176641313,-3468.0,0.00017764,2]
[401393707,1768176641323,-635.448,0.00017764,2]
[401393708,1768176641333,-916.599,0.00017764,2]
[401393709,1768176641343,-1202.14,0.00017764,2]
[401393710,1768176641356,-2437.0,0.00017764,2]
[401393711,1768176641365,-4820.0,0.00017764,2]
[401393712,1768176641376,-566.0,0.00017764,2]
[401393713,1768176641386,-1000.0,0.00017766,2]
[401393714,1768176641398,-25000.0,0.00017768,3]
[401393715,1768176641409,-533.72425904,0.00017768,2]
[401393716,1768176641425,-7097.864472,0.00017774,2]
[401393717,1768176641437,-150.0,0.00017775,2]
[401393718,1768176641448,-1000.0,0.00017776,2]
[401393719,1768176641457,-25000.0,0.00017777,3]
[401393720,1768176641467,-318.8,0.00017779,2]
[401393721,1768176641477,-500.0,0.00017781,2]
[401393722,1768176641486,-500.0,0.00017781,2]
[401393723,1768176641496,-500.0,0.00017781,2]
[401393724,1768176641505,-499.0,0.00017781,2]
[401393725,1768176641515,-500.0,0.00017781,2]
[401393726,1768176641524,-500.0,0.00017781,2]
[401393727,1768176641534,-500.0,0.00017781,2]